{"text_format":"1","workbook":"xlsx","n_sheets":13,"sheets":["Home","Changelog","Product_Guide","HIPV1","HIPS1","HIPF1","HIPU1","HIPVE","AU","Checkout","Pricelist","Photos","Product_guide_data"],"not_rendered":{"charts":0,"images":61,"macros":1,"external_links":0,"defined_names":9,"comments":1,"pivot_tables":0},"unopened":[],"bounds":{"document_bytes":16777216,"sheet_cells":100000,"rows_first":2000,"rows_last":500,"rows_between":2000,"halvings":0,"cell_chars":16384,"cell_head_chars":4096},"cells_cut":0,"cells_raw":0,"read":"whole","date_system":"1900"}

{"sheet":"Home","index":0,"n_rows":43,"n_cols":16,"rows_kept":43,"cut":false,"hidden":false,"merged":[]}
["Hint:","Underlined text is a link to next page.",null,null,null,null,null,null,null,null,null,"Pricelist"]
[null,null,null,null,null,null,null,null,"Navigation:",null,null,"Product Guide"]
[null,null,null,null,null,null,null,null,null,null,null,"Changelog"]
[null,null,null,null,null,"2N® Helios IP Configurator II"]
[null,null,null,null,null,"Choose your intercom model, or use Product Guide to select which model is the right one for you."]
[]
[]
[]
[]
[]
[]
[]
[]
[]
[]
[]
[]
[]
[]
[]
[]
[]
[]
[null,null,"2N® Helios IP Vario",null,null,"2N® Helios IP Force",null,null,"2N® Helios IP Safety",null,null,"2N® Helios IP Uni",null,"2N® Helios IP Verso",null,"2N® Access Unit"]
[null,null,"Versatile all-round intercom",null,null,"Security oriented intercom",null,null,"Emergency call point",null,null,"Simple easy to use intercom",null,"Modular high-end intercom",null,"Standalone IP card reader"]
[]
[null,null,"Key features:",null,null,"Key features:",null,null,"Key features:",null,null,"Key features:",null,"Key features:",null,"Key features:"]
[null,null,"up to 54 quick dial buttons",null,null,"robust and antivandal",null,null,"robust and antivandal",null,null,"simple installation",null,"modular design",null,"Embedded card reader with door controller"]
[null,null,"optional graphic display",null,null,"wideangle camera with night vision",null,null,"backlit button",null,null,"backlit button",null,"HD camera with night vision",null,"Pure IP standalone functionality"]
[null,null,"optional RFID card reader",null,null,"optional HD camera",null,null,"optional tamper switch",null,null,"tamper switch",null,"tamper switch",null,"Tamper switch"]
[null,null,"integrated camera",null,null,"optional RFID card reader",null,null,"10W loudspeaker",null,null,null,null,"up to 146 buttons",null,"All typical access control features"]
[null,null,"access control",null,null,"10W loudspeaker",null,null,"weatherproof"]
[null,null,"weatherproof with accessories",null,null,"weatherproof"]
[]
[null,null,"Good for:",null,null,"Good for:",null,null,"Good for:",null,null,"Good for:",null,"Good for:",null,"Good for:"]
[null,null,"offices",null,null,"government",null,null,"government",null,null,"residential",null,"offices",null,"offices"]
[null,null,"retail",null,null,"industry",null,null,"industry",null,null,"offices",null,"retail",null,"administrative buildings"]
[null,null,"administrative buildings",null,null,"transportation",null,null,"transportation",null,null,"retail",null,"administrative buildings"]
[null,null,"residential",null,null,null,null,null,null,null,null,null,null,"residential"]
[]
[]
[null,null,"This configuration tool generates suggested configurations. Its list of result is not a complete one, some requests might have multiple solutions. Not all requests can be accommodated and such requests need to be specified manually."]
[null,null,"2N Telekomunikace a.s. is not liable for misuse, wrong use, wrong interpretation of this file, mistakes or changes."]

{"sheet":"Changelog","index":1,"n_rows":24,"n_cols":9,"rows_kept":24,"cut":false,"hidden":false,"merged":[]}
[null,null,null,null,null,null,null,"Navigation:","Home"]
[]
[]
[]
["Features"]
[null,"Changelog added"]
[null,"2N® Access Unit added"]
[null,"2N® Helios IP Manager replaced by 2N® Access Commander"]
[null,"New locks added"]
[null,"2N® Indoor Touch model 2014 added, option to include higher quantity"]
[null,"Induction loop for Verso added"]
[null,"1W versions of Force and Safety removed"]
[null,"NFC license added"]
[null,"External Wiegand card reader new picture"]
[null,"USB card readers added"]
[null,"Secured card readers added"]
[null,"Installation backplates for Verso added"]
[null,"Force security screws added"]
[null,"Power supply and locks section rearranged and specs added"]
[null,"Security relay automatically added to configuration"]
[]
["Bugfixes"]
[null,"Helios IP Manager licenses in Safety configuration - not applicable anymore"]
[null,"Helios IP Verso 3 module surface frame - accessories pictures overlapped with its picture"]

{"sheet":"Product_Guide","index":2,"n_rows":16,"n_cols":16,"rows_kept":16,"cut":false,"hidden":false,"merged":[]}
["Hint: If the Product Guide does not seem to work, please check if you have enabled macros in your MS Excel",null,null,null,null,null,"Navigation:","Home"]
[null,null,null,null,null,null,null,"2N® Helios IP Verso model selection"]
[null,null,null,null,null,null,null,"2N® Helios IP Vario model selection"]
[null,"Product Guide",null,null,null,null,null,"2N® Helios IP Force model selection"]
[null,null,null,null,null,null,null,"2N® Helios IP Safety model selection"]
[null,"Please select features which you want:",null,null,null,null,null,"2N® Helios IP Uni model selection"]
[null,null,null,null,null,null,null,"2N® Access Unit selection"]
[null,null,null,null,null,null,null,"Pricelist"]
[null,"Camera","Night vision","Antivandal \nHigh IP coverage","More than 1 button","More than 6 buttons","Integral RFID \ncard reader","Keypad","HD camera",null,null,null,null,null,null,"Display"]
[]
[]
[]
[null,false,false,false,false,false,false,false,true]
[null,{"$f":"IF(B13,1,0)","v":0},{"$f":"IF(C13,1,0)","v":0},{"$f":"IF(D13,1,0)","v":0},0,0,0,0,1]
[]
[null,null,"2N® Helios IP Force",null,null,"2N® Helios IP Verso"]

{"sheet":"HIPV1","index":3,"n_rows":121,"n_cols":19,"rows_kept":121,"cut":false,"hidden":false,"merged":[]}
["Hint:","Select options according to your requirements and proceed to checkout using button at the end of the page."]
[null,null,null,null,null,null,null,"Navigation:","Home"]
[null,null,null,null,null,null,null,null,"Checkout"]
[null,"2N® Helios IP Vario",null,null,null,null,null,null,"Pricelist"]
[null,null,null,null,null,null,null,null,null,null,null,null,null,8,16,24,32,40,48]
[null,null,null,null,null,null,null,null,null,null,null,null,1,{"$f":"N$5+$M6","v":9},17,{"$f":"P$5+$M6","v":25},33,41,49]
[null,null,"Yes","No",null,1,"OK",null,null,null,null,null,3,11,19,27,35,43,51]
[null,null,null,null,null,null,null,null,null,null,null,null,6,14,22,30,38,46,54]
[null,null,null,null,null,null,null,null,null,null,null,null,9]
[null,null,"Yes","No",null,1,"OK",null,null,null,null,null,11]
[null,null,null,null,null,null,null,null,null,null,null,null,14]
[null,null,null,null,null,{"$f":"MOD(F13,8)","v":1},null,null,null,null,null,null,17]
[null,null,null,null,null,{"$f":"INDEX(M6:M26,F14,1)","v":1},null,null,null,null,null,null,19]
[null,"Please choose",null,null,null,1,"OK",null,null,null,null,null,22]
[null,null,null,null,null,null,null,null,null,null,null,null,25]
[null,null,null,null,null,null,null,null,null,null,null,null,27]
[null,null,"Yes","No",null,null,null,null,null,null,null,null,30]
[null,"Includes graphical phonebook",null,null,null,2,{"$f":"IF(OR(AND((MOD(F13,8)=6),(F10=1)),(F18=2)),\"OK\",\"KO\")","v":"OK"},{"$f":"IF((G18=\"KO\"),\"Display only comes with 6 button basic unit and keypad\",\"\")","v":""},null,null,null,null,33]
[null,null,null,null,null,null,null,null,null,null,null,null,35]
[null,null,null,null,null,null,null,null,null,null,null,null,38]
[null,null,"Yes","No",null,2,"OK",null,null,null,null,null,41]
[null,"125kHz card reader",null,null,null,null,null,null,null,null,null,null,43]
[null,null,null,null,null,null,null,null,null,null,null,null,46]
[null,null,null,null,null,null,null,null,null,null,null,null,49]
[null,"  RFID cards",0,null,null,null,null,null,null,null,null,null,51]
[null,null,null,null,null,null,{"$f":"IF(OR(AND((C25+C27)<>0,F21=2),(C25+C27)<0),\"KO\",\"OK\")","v":"OK"},{"$f":"IF(G26=\"KO\",\"You also need to select the card reader\",\"\")","v":""},null,null,null,null,54]
[null,"  RFID key fobs",0]
[]
[]
[null,null,"Surface","Flush mount","Plasterboard/drywall"]
[null,null,null,null,null,1,"OK"]
[]
[]
[null,null,"Indoor","Outdoor"]
[]
[null,null,null,null,null,1,"OK"]
[]
[]
[]
[null,null,"Yes","No"]
[null,null,null,null,null,2,"OK"]
[]
[]
[]
[]
[null,null,1,2,4]
[null,"For door lock control",null,null,null,1,"OK"]
[]
[]
[null,null,"Yes","No"]
[null,"   IP Relay",null,null,null,2,{"$f":"IF(AND(F91=FALSE,F97=FALSE,F51=1),\"KO\",\"OK\")","v":"OK"},{"$f":"IF(G51=\"KO\",\"Control of IP relay is done via HTTP commands, which is a licensed feature\",\"\")","v":""}]
[]
[]
[null,"   Security Relay","Yes","No"]
[null,null,null,null,null,1,"OK"]
[]
[]
[null,null,"Yes","No"]
[null,"For departure control, connects to internal one",null,null,null,2,{"$f":"IF(AND((F59=1),(F21=2)),\"KO\",\"OK\")","v":"OK"},{"$f":"IF(G59=\"KO\",\"Secondary RFID reader connects to the internal one\",\"\")","v":""}]
[]
[]
[]
[null,"Lock",null,null,null,1,"OK",null,null,"None",null,"None"]
[null,null,null,null,null,null,null,null,null,"PoE injector no plug",null,"Electrical lock 11211 low consumption 12V/230mA DC"]
[null,null,null,null,null,null,null,null,null,"PoE injector US plug",null,"Electrical lock 11221 hold-open, low consumption 12V/230mA DC"]
[null,null,"Yes","No",null,1,"OK",null,null,"PoE injector EU plug",null,"Electrical lock 11211MB mechanical blocking, low consumption 12V/230mA DC"]
[null,"12 V AC adapter for lock supply",null,null,null,null,null,null,null,"Adaptor EU plug",null,"Electrical lock 31211 fail-safe 12V/170mA "]
[null,null,null,null,null,null,null,null,null,null,null,"Electrical lock 211211 door signalling, low consumption 12V/230mA"]
[null,null,null,null,null,null,null,null,null,null,null,"Electrical lock 321211 fail-safe, door signalling 12V/170mA"]
[]
[null,"Power supply"]
[null,null,null,null,null,2,"OK"]
[]
[]
[]
[null,"Ethernet long distance extension over 2 wires",null,null,null,1,"OK",null,null,"No, thanks"]
[null,null,null,null,null,null,null,null,null,"EU plug"]
[null,null,null,null,null,null,null,null,null,"UK plug"]
[null,null,null,null,null,null,null,null,null,"US plug"]
[null,"Type"]
[null,null,null,null,null,1,"OK",null,null,"Black, PoE"]
[null,"Quantity",0,null,null,null,null,null,null,"White, PoE"]
[null,null,null,null,null,null,null,null,null,"Black, Wifi"]
[null,null,null,null,null,null,null,null,null,"White, Wifi"]
[null,"Helios IP License - Enhanced Audio",null,null,null,false,"OK"]
[null,"Includes User sounds, Audio loop test, Noise detection"]
[]
[null,"Helios IP License - Enhanced Video",null,null,null,false,"OK"]
[null,"Includes RTSP streaming server, ONVIF, External IP camera, PTZ, Motion detection"]
[]
[null,"Helios IP License - Enhanced Integration",null,null,null,false,"OK"]
[null,"Includes extended lock control option (quick dial button activation, time profiles for locks), Picture to email, Auto provisioning (TFTP/HTTP/TR069), HTTP API, Automation, FTP, SNMP"]
[]
[null,"Helios IP License - Enhanced Security",null,null,null,false,"OK"]
[null,"Includes 802.1X network authentication protocol, SIPs"]
[]
[null,"Helios IP License - Gold License",null,null,null,false,"OK"]
[null,"Includes all above features including NFC"]
[]
[null,"License for G.729",null,null,null,false,"OK"]
[null,"Lower bandwidth audio codec - saves network load, good for virtual PBX installations or installations with limited connection. Not available for Helios IP Uni."]
[]
[]
[]
[null,null,null,null,null,null,"OK"]
[null,"Software for group configuration and monitoring"]
[]
[null,"Number of devices in the installation",0]
[]
[]
[null,null,"Number of users"]
[null,"Employee time attendance monitoring plugin",0,null,null,null,{"$f":"IF(AND(C112>0,F21=2),\"KO\",\"OK\")","v":"OK"},{"$f":"IF(G112=\"KO\",\"For Time Attendance you need to select a card reader\",\"\")","v":""}]
[]
[]
[]
[]
[]
[]
[]
[]
[null,"Hint: If the Checkout button does not seem to work, please check if you have enabled the use of macros in MS Excel"]

{"sheet":"HIPS1","index":4,"n_rows":92,"n_cols":10,"rows_kept":92,"cut":false,"hidden":false,"merged":[]}
["Hint:","Select options according to your requirements and proceed to checkout using button at the end of the page."]
[null,null,null,null,null,null,null,"Navigation:","Home"]
[null,null,null,null,null,null,null,null,"Checkout"]
[null,"2N® Helios IP Safety",null,null,null,null,null,null,"Pricelist"]
[]
[]
[null,null,null,null,null,null,null,{"$f":"IF(G7=\"KO\",\"Red emergency button only comes with 10W speaker\",\"\")","v":""}]
[]
[]
[]
[null,null,"Surface","Flush mount","Plasterboard/drywall",1,"OK"]
[]
[]
[]
[]
[null,"Number and type of buttons",null,null,null,1,"OK",null,"1 round blue backlit button"]
[null,null,null,null,null,null,null,null,"2 round blue backlit buttons"]
[null,null,null,null,null,null,null,null,"1 red emergency button"]
[]
[null,"For door control, light etc.",2,4]
[null,null,null,null,null,1,"OK"]
[]
[null,null,"Yes","No"]
[null,"IP Relay",null,null,null,2,{"$f":"IF(AND(F68=FALSE,F62=FALSE,F24=1),\"KO\",\"OK\")","v":"OK"},{"$f":"IF(G24=\"KO\",\"You need to have Enhanced Integration License or Gold license in order to control IP relay\",\"\")","v":""}]
[]
[]
[null,null,"Yes","No"]
[null,"Security Relay",null,null,null,1,"OK"]
[]
[]
[null,null,null,null,null,null,null,null,"None","None"]
[null,"Lock",null,null,null,1,"OK",null,"Electrical lock 11211 low consumption 12V/230mA DC","PoE injector no plug"]
[null,null,null,null,null,null,null,null,"Electrical lock 11221 hold-open, low consumption 12V/230mA DC","PoE injector US plug"]
[null,"Transformer 230V AC / 12V AC","Yes","No",null,null,null,null,"Electrical lock 11211MB mechanical blocking, low consumption 12V/230mA DC","PoE injector EU plug"]
[null,"for separate lock power supply",null,null,null,1,"OK",null,"Electrical lock 31211 fail-safe 12V/170mA ","12V DC adaptor"]
[null,null,null,null,null,null,null,null,"Electrical lock 211211 door signalling, low consumption 12V/230mA"]
[null,null,null,null,null,null,null,null,"Electrical lock 321211 fail-safe, door signalling 12V/170mA"]
[]
[]
[]
[null,"Power supply",null,null,null,2,"OK"]
[]
[]
[]
[]
[null,"Ethernet long distance extension over 2 wires",null,null,null,1,"OK",null,"No, thanks"]
[null,null,null,null,null,null,null,null,"EU plug"]
[null,null,null,null,null,null,null,null,"UK plug"]
[null,null,null,null,null,null,null,null,"US plug"]
[]
[]
[null,"For hearing aid users","Yes","No"]
[null,null,null,null,null,2,{"$f":"IF(AND(F53=1,F21=2),\"KO\",\"OK\")","v":"OK"},{"$f":"IF(G53=\"KO\",\"Induction loop can not be used with additional electrical outputs at the same time\",\"\")","v":""}]
[]
[]
[null,"Helios IP License - Enhanced Audio",null,null,null,false,"OK"]
[null,"Includes User sounds, Audio loop test, Noise detection"]
[]
[null,"Helios IP License - Enhanced Video",null,null,null,false,"OK"]
[null,"Includes RTSP streaming server, ONVIF, External IP camera, PTZ, Motion detection"]
[]
[null,"Helios IP License - Enhanced Integration",null,null,null,false,"OK"]
[null,"Includes extended lock control option (quick dial button activation, time profiles for locks), Picture to email, Auto provisioning (TFTP/HTTP/TR069), HTTP API, Automation, FTP, SNMP"]
[]
[null,"Helios IP License - Enhanced Security",null,null,null,false,"OK"]
[null,"Includes 802.1X network authentication protocol, SIPs"]
[]
[null,"Helios IP License - Gold License",null,null,null,false,"OK"]
[null,"Includes all above features including NFC"]
[]
[null,"License for G.729",null,null,null,false,"OK"]
[null,"Lower bandwidth audio codec - saves network load, good for virtual PBX installations or installations with limited connection. Not available for Helios IP Uni."]
[]
[]
[]
[null,null,null,null,null,null,"OK"]
[]
[null,"Software for group configuration and monitoring"]
[]
[null,"Number of devices in the installation",0]
[]
[]
[]
[]
[]
[]
[]
[]
[]
[]
[]
[null,"Hint: If the Checkout button does not seem to work, please check if you have enabled the use of macros in MS Excel"]

{"sheet":"HIPF1","index":5,"n_rows":130,"n_cols":10,"rows_kept":130,"cut":false,"hidden":false,"merged":[]}
["Hint:","Select options according to your requirements and proceed to checkout using button at the end of the page."]
[null,null,null,null,null,null,null,"Navigation:","Home"]
[null,null,null,null,null,null,null,null,"Checkout"]
[null,"2N® Helios IP Force",null,null,null,null,null,null,"Pricelist"]
[]
[null,"Yes, HD with night vision","Yes, standard","No"]
[null,null,null,null,null,1,"OK"]
[]
[null,null,"Yes","No"]
[null,null,null,null,null,1,"OK"]
[]
[null,null,1,2,4]
[null,null,null,null,null,1,{"$f":"IF(AND(F10=1,F13<>1),\"KO\",\"OK\")","v":"OK"},{"$f":"IF(G13=\"KO\",\"With keypad only one button is possible\",\"\")","v":""}]
[]
[]
[null,null,"Yes","No"]
[null,"Status LEDs to visualise intercom state",null,null,null,2,{"$f":"IF(OR(AND(F13=1,F10=2),F17=2),\"OK\",\"KO\")","v":"OK"},{"$f":"IF(G17=\"KO\",\"Pictograms are only available with one button without keypad\",\"\")","v":""}]
[]
[]
[]
[null,null,"Yes","No"]
[null,"Internal RFID Card Reader",null,null,null,2,{"$f":"IF(OR(F22=2,AND(F22=1,F17=1),AND(F22=1,F13=2)),\"OK\",\"KO\")","v":"OK"},{"$f":"IF(G22=\"KO\",\"Only available with two buttons or pictograms\",\"\")","v":""}]
[]
[]
[null,null,null,null,null,1,"OK",null,"125kHz EM / HID prox"]
[null,null,null,null,null,null,null,null,"13.56MHz smart cards"]
[null,null,null,null,null,null,null,null,"13.56MHz for secured cards HID iClass"]
[null,"  RFID cards",0]
[null,null,null,null,null,null,{"$f":"IF(OR(AND((C28+C30)<>0,F22=2),(C28+C30)<0),\"KO\",\"OK\")","v":"OK"},{"$f":"IF(G29=\"KO\",\"You also need to select the card reader\",\"\")","v":""}]
[null,"  RFID key fobs",0]
[]
[]
[]
[]
[]
[]
[null,null,"Surface","Flush mount","Plasterboard/drywall"]
[null,null,null,null,null,1,"OK"]
[]
[]
[null,null,2,4]
[null,"For door control, light etc.",null,null,null,1,"OK"]
[]
[]
[null,null,"Yes","No"]
[null,"IP relay",null,null,null,2,{"$f":"IF(AND(F96=FALSE,F106=FALSE,F46=1),\"KO\",\"OK\")","v":"OK"},{"$f":"IF(G46=\"KO\",\"You need to have Enhanced Integration License or Gold license in order to control IP relay\",\"\")","v":""}]
[]
[]
[null,null,"Yes","No"]
[null,"Security Relay",null,null,null,1,"OK"]
[]
[]
[null,null,"Yes","No"]
[null,null,null,null,null,2,{"$f":"IF(OR(AND(F22=2,F54=1),AND(F22=1,F25=3,F54=1)),\"KO\",\"OK\")","v":"OK"},{"$f":"IF(G54=\"KO\",\"You need to have internal card reader in order to be able to connect the secondary one, and not the secured one.\",\"\")","v":""}]
[]
[]
[null,null,null,null,null,null,null,null,"None","None"]
[null,"Lock",null,null,null,1,"OK",null,"Electrical lock 11211 low consumption 12V/230mA DC","PoE injector no plug"]
[null,null,null,null,null,null,null,null,"Electrical lock 11221 hold-open, low consumption 12V/230mA DC","PoE injector US plug"]
[null,"Transformer 230V AC / 12V AC","Yes","No",null,null,null,null,"Electrical lock 11211MB mechanical blocking, low consumption 12V/230mA DC","PoE injector EU plug"]
[null,"for separate lock power supply",null,null,null,1,"OK",null,"Electrical lock 31211 fail-safe 12V/170mA ","Adaptor"]
[null,null,null,null,null,null,null,null,"Electrical lock 211211 door signalling, low consumption 12V/230mA"]
[null,null,null,null,null,null,null,null,"Electrical lock 321211 fail-safe, door signalling 12V/170mA"]
[]
[]
[null,"Power supply",null,null,null,2,"OK"]
[]
[]
[]
[]
[null,"Ethernet long distance extension over 2 wires",null,null,null,1,"OK",null,"No, thanks"]
[null,null,null,null,null,null,null,null,"EU plug"]
[null,null,null,null,null,null,null,null,"UK plug"]
[]
[null,"Type",null,null,null,1,"OK",null,"Black, PoE"]
[null,null,null,null,null,null,null,null,"White, PoE"]
[null,"Quantity",0,null,null,null,null,null,"Black, Wifi"]
[null,null,null,null,null,null,null,null,"White, Wifi"]
[]
[null,"For hearing aid users","Yes","No"]
[null,null,null,null,null,2,{"$f":"IF(AND(F81=1,OR(F22=1,F42=2)),\"KO\",\"OK\")","v":"OK"},{"$f":"IF(G81=\"KO\",\"Induction loop can not be used with additional electrical outputs / card reader at the same time\",\"\")","v":""}]
[]
[]
[]
[null,"Torx with pin for higher security","Yes","No"]
[null,null,null,null,null,2,"OK"]
[]
[]
[null,"Helios IP License - Enhanced Audio",null,null,null,null,"OK"]
[null,"Includes User sounds, Audio loop test, Noise detection",null,null,null,false]
[]
[null,"Helios IP License - Enhanced Video",null,null,null,null,"OK"]
[null,"Includes RTSP streaming server, ONVIF, External IP camera, PTZ, Motion detection",null,null,null,false]
[]
[null,"Helios IP License - Enhanced Integration",null,null,null,null,"OK"]
[null,"Includes extended lock control option (quick dial button activation, time profiles for locks), Picture to email, Auto provisioning (TFTP/HTTP/TR069), HTTP API, Automation, FTP, SNMP",null,null,null,false]
[]
[null,"Helios IP License - Enhanced Security",null,null,null,null,"OK"]
[null,"Includes 802.1X network authentication protocol, SIPs",null,null,null,false]
[]
[null,"Helios IP License - Gold License",null,null,null,null,"OK"]
[null,"Includes all above features including NFC",null,null,null,false]
[]
[null,"License for G.729",null,null,null,null,"OK"]
[null,"Lower bandwidth audio codec - saves network load, good for virtual PBX installations or installations with limited connection. Not available for Helios IP Uni."]
[null,null,null,null,null,false]
[null,"License for G.729",null,null,null,null,"OK"]
[null,"Lower bandwidth audio codec - saves network load, good for virtual PBX installations or installations with limited connection. Not available for Helios IP Uni.",null,null,null,false]
[]
[]
[]
[null,"Software for group configuration and monitoring",null,null,null,null,"OK"]
[]
[null,"Number of devices in the installation",0]
[]
[]
[]
[]
[null,null,"Number of users",null,null,null,{"$f":"IF(AND(C123>0,F22=2),\"KO\",\"OK\")","v":"OK"}]
[null,"Employee time attendance monitoring plugin",0]
[]
[]
[null,null,null,null,null,null,null,{"$f":"IF(G119=\"KO\",\"For Time Attendance you need to select a card reader\",\"\")","v":""}]
[]
[]
[]
[null,null,"End of page."]
[]
[]
[null,"Hint: If the Checkout button does not seem to work, please check if you have enabled the use of macros in MS Excel"]

{"sheet":"HIPU1","index":6,"n_rows":85,"n_cols":10,"rows_kept":85,"cut":false,"hidden":false,"merged":[]}
["Hint:","Select options according to your requirements and proceed to checkout using button at the end of the page."]
[null,null,null,null,null,null,null,"Navigation:","Home"]
[null,null,null,null,null,null,null,null,"Checkout"]
[null,"2N® Helios IP Uni",null,null,null,null,null,null,"Pricelist"]
[]
[]
[null,"Number of buttons",1,2,null,1,"OK"]
[]
[]
[]
[]
[null,null,"Surface","Flush mount","Plasterboard/drywall",2,"OK"]
[]
[]
[]
[null,null,"Yes","No"]
[null,"Status LEDs to visualise intercom state",null,null,null,1,{"$f":"IF(AND(F7=2,F17=1),\"KO\",\"OK\")","v":"OK"},{"$f":"IF(G17=\"KO\",\"Pictograms are only available with one button\",\"\")","v":""}]
[]
[]
[null,null,"Yes","No"]
[null,"Security Relay",null,null,null,1,"OK"]
[]
[]
[null,null,null,null,null,null,null,null,"None","None"]
[null,"Lock",null,null,null,1,"OK",null,"Electrical lock 11211 low consumption 12V/230mA DC","PoE injector no plug"]
[null,null,null,null,null,null,null,null,"Electrical lock 11221 hold-open, low consumption 12V/230mA DC","PoE injector US plug"]
[null,"Transformer 230V AC / 12V AC","Yes","No",null,null,null,null,"Electrical lock 11211MB mechanical blocking, low consumption 12V/230mA DC","PoE injector EU plug"]
[null,"for separate lock power supply",null,null,null,1,"OK",null,"Electrical lock 31211 fail-safe 12V/170mA ","Adaptor"]
[null,null,null,null,null,null,null,null,"Electrical lock 211211 door signalling, low consumption 12V/230mA"]
[null,null,null,null,null,null,null,null,"Electrical lock 321211 fail-safe, door signalling 12V/170mA"]
[]
[]
[]
[null,"Power supply",null,null,null,2,"OK"]
[]
[]
[]
[]
[null,"Ethernet long distance extension over 2 wires",null,null,null,1,"OK",null,"No, thanks"]
[null,null,null,null,null,null,null,null,"EU plug"]
[null,null,null,null,null,null,null,null,"UK plug"]
[null,null,null,null,null,null,null,null,"US plug"]
[null,"Type",null,null,null,4,"OK",null,"Black, PoE"]
[null,null,null,null,null,null,null,null,"White, PoE"]
[null,"Quantity",0,null,null,null,null,null,"Black, Wifi"]
[null,null,null,null,null,null,null,null,"White, Wifi"]
[]
[]
[null,"For hearing aid users","Yes","No",null,2,"OK"]
[]
[]
[]
[]
[]
[null,"Software for group configuration and monitoring",null,null,null,null,"OK"]
[]
[null,"Number of devices in the installation",0]
[]
[]
[]
[]
[]
[]
[]
[]
[]
[]
[]
[null,"Hint: If the Checkout button does not seem to work, please check if you have enabled the use of macros in MS Excel"]
[]
[]
[]
[]
[]
[]
[]
[]
[]
[]
[]
[]
[]
[]
[]
[null,null,null,null,null,2]

{"sheet":"HIPVE","index":7,"n_rows":124,"n_cols":10,"rows_kept":124,"cut":false,"hidden":false,"merged":[]}
["Hint:","Select options according to your requirements and proceed to checkout using button at the end of the page."]
[null,null,null,null,null,null,null,"Navigation:","Home"]
[null,null,null,null,null,null,null,null,"Checkout"]
[null,"2N® Helios IP Verso",null,null,null,null,null,null,"Pricelist"]
[]
[null,null,"Yes","No"]
[null,null,null,null,null,1,"OK"]
[]
[null,null,"Yes","No"]
[null,null,null,null,null,2,"OK"]
[]
[]
[null,null,null,1,null,{"$f":"D13","v":1},{"$f":"IF(AND((F13>0),(F13<147)),\"OK\",\"KO\")","v":"OK"},{"$f":"IF(G13=\"KO\",\"Maximal number of buttons is 146, minimal is 1\",\"\")","v":""}]
[]
[]
[]
[null,"Internal RFID Card Reader",null,null,null,1,{"$f":"IF(AND(F19,F17=2),\"KO\",\"OK\")","v":"OK"},{"$f":"IF((G17=\"KO\"),\"NFC not available with 125kHz reader\",\"\")","v":""}]
[null,null,null,null,null,null,null,null,"No, thanks"]
[null,"NFC for access control",null,null,null,false,null,null,"125kHz EM / HID prox"]
[null,null,null,null,null,null,null,null,"13.56MHz smart cards"]
[null,"RFID cards",0,null,null,null,null,null,"13.56MHz for secured cards HID iClass"]
[null,null,null,null,null,null,{"$f":"IF(OR(AND((C21+C23)<>0,F17<2),(C21+C23)<0),\"KO\",\"OK\")","v":"OK"},{"$f":"IF(G22=\"KO\",\"You also need to select the card reader\",\"\")","v":""}]
[null,"RFID key fobs",0]
[]
[]
[null,null,"Yes","No"]
[null,"Place to display house number, opening hours…",null,null,null,2,"OK"]
[]
[]
[]
[null,null,null,null,null,1,"OK",null,"Flat surface"]
[null,null,null,null,null,null,null,null,"Glass"]
[null,null,null,null,null,null,null,null,"Rough surface (stone, bricks...)"]
[null,null,null,null,null,null,null,null,"Flush mount"]
[null,"For door control, light etc.",null,0,null,{"$f":"D35","v":0},{"$f":"IF(F35<60,\"OK\",\"KO\")","v":"OK"},{"$f":"IF(G35=\"KO\",\"Maximal number of outputs is 59\",\"\")","v":""},"Plasterboard / drywall"]
[]
[]
[null,null,"Yes","No"]
[null,"To recognise unit opening",null,null,null,2,{"$f":"IF(F39<60,\"OK\",\"KO\")","v":"OK"}]
[]
[]
[null,null,"Yes","No"]
[null,"To interconnect Helios IP with 3rd party readers",null,null,null,2,{"$f":"IF(F43<60,\"OK\",\"KO\")","v":"OK"}]
[null,"or access control systems"]
[]
[null,null,"Yes","No"]
[null,"IP relay",null,null,null,2,{"$f":"IF(AND(F93=FALSE,F100=FALSE,F47=1),\"KO\",\"OK\")","v":"OK"},{"$f":"IF(G47=\"KO\",\"You need to have Enhanced Integration License or Gold license in order to control IP relay\",\"\")","v":""}]
[]
[]
[null,null,"Yes","No"]
[null,"Security Relay",null,null,null,1,"OK",null,"No, thanks"]
[null,null,null,null,null,null,null,null,"Yes, installed on flat surface"]
[null,null,null,null,null,null,null,null,"Yes, installed on glass"]
[null,null,null,null,null,null,null,null,"Yes, installed on rough surface"]
[null,"Remotely installed",null,null,null,1,"OK",null,"Yes, flush mount"]
[null,null,null,null,null,null,null,null,"Yes, installed in drywall"]
[]
[null,null,null,null,null,null,null,null,"None","None"]
[null,"Lock",null,null,null,1,"OK",null,"Electrical lock 11211 low consumption 12V/230mA DC","PoE injector no plug"]
[null,null,null,null,null,null,null,null,"Electrical lock 11221 hold-open, low consumption 12V/230mA DC","PoE injector US plug"]
[null,"Transformer 230V AC / 12V AC","Yes","No",null,null,null,null,"Electrical lock 11211MB mechanical blocking, low consumption 12V/230mA DC","PoE injector EU plug"]
[null,"for separate lock power supply",null,null,null,1,"OK",null,"Electrical lock 31211 fail-safe 12V/170mA ","Adaptor"]
[null,null,null,null,null,null,null,null,"Electrical lock 211211 door signalling, low consumption 12V/230mA"]
[null,null,null,null,null,null,null,null,"Electrical lock 321211 fail-safe, door signalling 12V/170mA"]
[]
[]
[null,"Power supply",null,null,null,2,"OK"]
[]
[]
[]
[null,null,null,null,null,null,null,null,"No, thanks"]
[null,"Ethernet long distance extension over 2 wires",null,null,null,1,"OK",null,"EU plug"]
[null,null,null,null,null,null,null,null,"UK plug"]
[null,null,null,null,null,null,null,null,"US plug"]
[]
[null,null,null,null,null,null,null,null,"Black, PoE"]
[null,"Type",null,null,null,4,"OK",null,"White, PoE"]
[null,null,null,null,null,null,null,null,"Black, Wifi"]
[null,"Quantity",0,null,null,null,null,null,"White, Wifi"]
[]
[]
[null,"For hearing aid users","Yes","No"]
[null,null,null,null,null,2,"OK"]
[]
[]
[null,"Helios IP License - Enhanced Audio",null,null,null,null,"OK"]
[null,"Includes User sounds, Audio loop test, Noise detection",null,null,null,false]
[]
[null,"Helios IP License - Enhanced Video",null,null,null,null,"OK"]
[null,"Includes RTSP streaming server, ONVIF, External IP camera, PTZ, Motion detection",null,null,null,false]
[]
[null,"Helios IP License - Enhanced Integration",null,null,null,null,"OK"]
[null,"Includes extended lock control option (quick dial button activation, time profiles for locks), Picture to email, Auto provisioning (TFTP/HTTP/TR069), HTTP API, Automation, FTP, SNMP",null,null,null,false]
[]
[null,"Helios IP License - Enhanced Security",null,null,null,null,"OK"]
[null,"Includes 802.1X network authentication protocol, SIPs",null,null,null,false]
[]
[null,"Helios IP License - Gold License",null,null,null,null,"OK"]
[null,"Includes all above features including NFC"]
[null,null,null,null,null,false]
[null,"License for G.729",null,null,null,null,"OK"]
[null,"Lower bandwidth audio codec - saves network load, good for virtual PBX installations or installations with limited connection. Not available for Helios IP Uni.",null,null,null,false]
[]
[]
[]
[]
[null,"Software for group configuration and monitoring",null,null,null,null,"OK"]
[]
[null,"Number of devices in the installation",0]
[]
[]
[]
[null,null,"Number of users",null,null,null,{"$f":"IF(AND(C114>0,F17<2),\"KO\",\"OK\")","v":"OK"}]
[null,"Employee time attendance monitoring plugin",0,null,null,null,null,{"$f":"IF(G113=\"KO\",\"For Time Attendance you need to select a card reader\",\"\")","v":""}]
[]
[]
[]
[null,null,"End of page."]
[]
[]
[]
[]
[]
[null,"Hint: If the Checkout button does not seem to work, please check if you have enabled the use of macros in MS Excel"]

{"sheet":"AU","index":8,"n_rows":84,"n_cols":10,"rows_kept":84,"cut":false,"hidden":false,"merged":[]}
["Hint:","Select options according to your requirements and proceed to checkout using button at the end of the page."]
[null,null,null,null,null,null,null,"Navigation:","Home"]
[null,null,null,null,null,null,null,null,"Checkout"]
[null,"2N® Access Unit",null,null,null,null,null,null,"Pricelist"]
[]
[]
[]
[null,null,null,null,null,null,null,null,null,"125kHz"]
[null,null,null,null,null,2,"OK",null,null,"13.56 MHz"]
[null,null,null,null,null,null,null,null,null,"13.56 MHz with NFC"]
[]
[]
[null,"RFID cards",0]
[null,null,null,null,null,null,"OK"]
[null,"RFID key fobs",0]
[]
[]
[null,null,"Loose wires","RJ45"]
[null,null,null,null,null,1,"OK"]
[]
[]
[null,null,null,null,null,null,null,null,null,"Glass"]
[null,null,null,null,null,2,"OK",null,null,"Flat surface"]
[null,null,null,null,null,null,null,null,null,"Rough surface (stone, bricks...)"]
[null,null,null,null,null,null,null,null,null,"Flush mount"]
[null,null,null,null,null,null,null,null,null,"Plasterboard / drywall"]
[]
[null,null,"Yes","No"]
[null,"IP relay",null,null,null,2,"OK"]
[]
[]
[null,null,"Yes","No"]
[null,"Security Relay",null,null,null,1,"OK",null,null,"No, thanks"]
[null,null,null,null,null,null,null,null,null,"Yes, installed on glass"]
[null,null,null,null,null,null,null,null,null,"Yes, installed on flat surface"]
[null,null,null,null,null,null,null,null,null,"Yes, installed on rough surface"]
[null,null,null,null,null,1,"OK",null,null,"Yes, flush mount"]
[null,null,null,null,null,null,null,null,null,"Yes, installed in drywall"]
[]
[null,null,null,null,null,null,null,null,"None","None"]
[null,"Lock",null,null,null,1,"OK",null,"Electrical lock 11211 low consumption 12V/230mA DC","PoE injector no plug"]
[null,null,null,null,null,null,null,null,"Electrical lock 11221 hold-open, low consumption 12V/230mA DC","PoE injector US plug"]
[null,"Transformer 230V AC / 12V AC","Yes","No",null,null,null,null,"Electrical lock 11211MB mechanical blocking, low consumption 12V/230mA DC","PoE injector EU plug"]
[null,"for separate lock power supply",null,null,null,1,"OK",null,"Electrical lock 31211 fail-safe 12V/170mA ","Adaptor"]
[null,null,null,null,null,null,null,null,"Electrical lock 211211 door signalling, low consumption 12V/230mA"]
[null,null,null,null,null,null,null,null,"Electrical lock 321211 fail-safe, door signalling 12V/170mA"]
[]
[]
[null,"Power supply",null,null,null,2,"OK"]
[]
[]
[]
[null,null,null,null,null,null,null,null,"No, thanks"]
[null,"Ethernet long distance extension over 2 wires",null,null,null,1,"OK",null,"EU plug"]
[null,null,null,null,null,null,null,null,"UK plug"]
[null,null,null,null,null,null,null,null,"US plug"]
[]
[]
[null,null,"Yes","No",null,2,"OK"]
[]
[]
[]
[null,null,"Yes","No"]
[null,null,null,null,null,2,"OK"]
[]
[]
[]
[null,"Software for group configuration and monitoring",null,null,null,1,"OK"]
[]
[null,"Number of devices in the installation",0]
[]
[]
[null,null,"Number of users"]
[null,"Employee time attendance monitoring plugin",0,null,null,null,"OK",{"$f":"IF(G74=\"KO\",\"For Time Attendance you need to select a card reader\",\"\")","v":""}]
[]
[]
[]
[null,null,"End of page."]
[]
[]
[]
[]
[]
[null,"Hint: If the Checkout button does not seem to work, please check if you have enabled the use of macros in MS Excel"]

{"sheet":"Checkout","index":9,"n_rows":16,"n_cols":11,"rows_kept":16,"cut":false,"hidden":false,"merged":[[7,8,7,9],[2,8,2,9],[3,8,3,9],[4,8,4,9],[5,8,5,9],[6,8,6,9]]}
[]
[null,null,null,null,null,null,null,"Navigation:","Home"]
[null,null,null,null,null,null,null,null,"Back to Helios IP Verso model selection"]
[null,null,null,null,null,null,null,null,"Back to Helios IP Vario model selection"]
[null,null,null,null,null,null,null,null,"Back to Helios IP Force model selection"]
[null,null,null,null,null,null,null,null,"Back to Helios IP Safety model selection"]
[null,null,null,null,null,null,null,null,"Back to Helios IP Uni model selection"]
[null,null,null,null,null,null,null,null,"Back to Access Unit selection"]
[null,null,null,null,null,null,null,null,"Pricelist"]
[null,null,null,null,"Your order"]
[null,null,null,null,"List of items matching your requirements.",null,null,"Hint: When prices are null, you need to insert them into the Pricelist sheet"]
[null,"Pictures are informative only"]
[null,"Not all items are pictured",null,null,"Ordering number","Item name and description","Qty","Unit price level 1","Unit price level 2","Total price level 1","Total price level 2"]
[null,null,null,null,916010,"2N® Access Unit - 13.56MHz cards NFC ready",1]
[null,null,null,null,9155021,"2N® Helios IP Verso - Frame for surface installation, 1 module",1]
[null,null,null,null,9159010,"2N® Helios IP Security Relay",1]

{"sheet":"Pricelist","index":10,"n_rows":158,"n_cols":8,"rows_kept":158,"cut":false,"hidden":false,"merged":[]}
[]
[null,null,null,null,null,null,"Navigation:","Home"]
["Ordering number","Item name and description","Price level 1","Price level 2",null,"Currency",null,"2N® Helios IP Verso model selection"]
["2N® Helios IP Verso",null,null,null,null,"EUR",null,"2N® Helios IP Vario model selection"]
["9155101C","2N® Helios IP Verso - basic unit with camera",null,null,null,null,null,"2N® Helios IP Force model selection"]
[9155101,"2N® Helios IP Verso - basic unit w/o camera",null,null,null,null,null,"2N® Helios IP Safety model selection"]
[9155035,"2N® Helios IP Verso - 5 nameplates module",null,null,null,null,null,"2N® Helios IP Uni model selection"]
[9155031,"2N® Helios IP Verso - keypad module",null,null,null,null,null,"2N® Access Unit selection"]
[9155030,"2N® Helios IP Verso - infopanel",null,null,null,null,null,"Checkout"]
[9155032,"2N® Helios IP Verso – 125kHz RFID card reader"]
[9155033,"2N® Helios IP Verso - 13.56MHz smart card RFID reader"]
[9155040,"2N® Helios IP Verso - 13.56MHz smart card RFID reader NFC ready "]
[9155042,"2N® Helios IP Verso - 13.56MHz secured card RFID reader NFC ready "]
[9155041,"2N® Helios IP Verso - induction loop"]
[9155044,"2N® Helios IP Verso - Vigik module"]
[9155034,"2N® Helios IP Verso - I\\O modul "]
[9155051,"2N® Helios IP Verso - blind button"]
[9155037,"2N® Helios IP Verso - Wiegand module"]
[9155038,"2N® Helios IP Verso - Tamper switch"]
[9155039,"2N® Helios IP Verso - Blind panel"]
[9155051,"2N® Helios IP Verso - Blind button"]
[9155050,"2N® Helios IP Verso connection cable - length 1m"]
[9155054,"2N® Helios IP Verso connection cable - length 3m"]
[9155055,"2N® Helios IP Verso connection cable - length 5m"]
["2N® Helios IP Verso - Installation Accessories"]
[9155021,"2N® Helios IP Verso - Frame for surface installation, 1 module"]
[9155022,"2N® Helios IP Verso - Frame for surface installation, 2 modules"]
[9155023,"2N® Helios IP Verso - Frame for surface installation, 3 modules"]
[9155011,"2N® Helios IP Verso - Frame for flush installation, 1 module"]
[9155014,"2N® Helios IP Verso - flush mount installation box for 1 module"]
[9155012,"2N® Helios IP Verso - Frame for flush installation, 2 modules"]
[9155015,"2N® Helios IP Verso - flush mount installation box for 2 modules"]
[9155013,"2N® Helios IP Verso - Frame for flush installation, 3 modules"]
[9155016,"2N® Helios IP Verso - flush mount installation box for 3 modules"]
[9155061,"2N® Helios IP Verso backplate - 1 module"]
[9155062,"2N® Helios IP Verso backplate - 2 modules"]
[9155063,"2N® Helios IP Verso backplate - 3 modules"]
[9155064,"2N® Helios IP Verso backplate - 2(w) x 2(h) modules"]
[9155065,"2N® Helios IP Verso backplate - 3(w) x 2(h) modules"]
[9155066,"2N® Helios IP Verso backplate - 2(w) x 3(h) modules"]
[9155067,"2N® Helios IP Verso backplate - 3(w) x 3(h) modules"]
["2N® Helios IP Vario - without camera"]
["9137111U","2N® Helios IP Vario 1 button"]
["9137131U","2N® Helios IP Vario 3 button"]
["9137161U","2N® Helios IP Vario 3x2 button"]
["9137111KU","2N® Helios IP Vario 1 button + keypad"]
["9137131KU","2N® Helios IP Vario 3 button + keypad"]
["9137161KU","2N® Helios IP Vario 3x2 button + keypad"]
["2N® Helios IP Vario - with camera"]
["9137111CU","2N® Helios IP Vario 1 button + cam."]
["9137131CU","2N® Helios IP Vario 3 button + cam."]
["9137161CU","2N® Helios IP Vario 3x2 button + cam."]
["9137111CKU","2N® Helios IP Vario 1 button + keypad + cam."]
["9137131CKU","2N® Helios IP Vario 3 button + keypad + cam."]
["9137161CKU","2N® Helios IP Vario 3x2 button + keypad + cam."]
["2N® Helios IP Vario - with Display"]
["9137160KDU","2N® Helios IP Vario 3x2 button + keypad + display"]
["9137160CKDU","2N® Helios IP Vario 3x2 button + keypad + cam. + display"]
["2N® Helios IP Force"]
["9151101CRPW","2N® Helios IP Force - 1 button, camera, pictograms, 10W speaker (card reader ready)"]
["9151101CHRPW","2N® Helios IP Force - 1 button, HD camera, pictograms, 10W speaker (card reader ready)"]
["9151101RPW","2N® Helios IP Force - 1 button, pictograms, 10W speaker (card reader ready)"]
["9151101W","2N® Helios IP Force - 1 button & 10W speaker"]
["9151101CW","2N® Helios IP Force - 1 button & camera & 10W speaker"]
["9151101CHW","2N® Helios IP Force - 1 button & HD camera & 10W speaker"]
["9151104W ","2N® Helios IP Force - 4 buttons & 10W speaker"]
["9151104CW ","2N® Helios IP Force - 4 button & camera & 10W speaker"]
["9151104CHW ","2N® Helios IP Force - 4 button & HD camera & 10W speaker"]
["9151101KW","2N® Helios IP Force - 1 button & keypad & 10W speaker"]
["9151101CKW","2N® Helios IP Force - 1 button & camera & keypad & 10W speaker"]
["9151101CHKW","2N® Helios IP Force - 1 button & HD camera & keypad & 10W speaker"]
["9151102CRW","2N® Helios IP Force - 2 buttons & camera (card reader ready) & 10W speaker"]
["9151102CHRW","2N® Helios IP Force - 2 buttons & HD camera (card reader ready) & 10W speaker"]
["9151102RW","2N® Helios IP Force - 2 buttons (card reader ready) & 10W speaker"]
["2N® Helios IP Safety"]
["9152101W","2N® Helios IP Safety - 1 button & 10W speaker"]
["9152102W","2N® Helios IP Safety - 2 buttons & 10W speaker, INFO/SOS labels"]
["9152101MW","2N® Helios IP Safety - red emergency button & 10W speaker"]
["2N® Helios IP UNI"]
["9153101","2N® Helios IP Uni - 1 button"]
["9153102","2N® Helios IP Uni - 2 buttons"]
["9153101P","2N® Helios IP Uni - 1 button, pictograms"]
["2N® Helios IP Licenses"]
["9137905","2N® Helios IP License - Enhanced Audio"]
["9137906","2N® Helios IP License - Enhanced Video"]
["9137907","2N® Helios IP License - Enhanced Integration"]
["9137908","2N® Helios IP License - Enhanced Security"]
[9137915,"2N® Helios IP License - NFC License"]
["9137909","2N® Helios IP License - Gold License"]
["9137902","license for G.729"]
[9137910,"2N® Helios IP License - InformaCast"]
["2N® Access Commander"]
["2N® Access Commander for 1 device = free of charge"]
[91379040,"2N® Access Commander - license for +5 devices (block of 5 licenses)"]
[91379041,"2N® Access Commander - license for +25 users (block of 25 licenses) used only for attendance monitoring/tracking "]
["Extenders (Helios IP Vario)"]
["9135181E","2N® Helios extendr 8 x single button"]
["9135182E","2N® Helios extendr 8 x double button"]
["9135310E","2N® Helios infopanel extender without buttons"]
["Roofs & Boxes (Helios IP Vario)","Roofs, boxes, masks"]
["9135331E","2N® Helios roof for 1 module"]
["9135332E","2N® Helios roof for 2 module"]
["9135351E","2N® Helios flush fixed box for 1 module"]
["9135352E","2N® Helios flush fixed box for 2 modules"]
["9135361E","2N® Helios roof and box for masonry fitting 1 module"]
["9135362E","2N® Helios roof and box for masonry fitting 2 modules"]
["Boxes (Helios IP Force, Safety, UNI) ","Roofs, boxes, masks"]
[9151001,"Brick flush mounting box (for Helios IP Force/Safety)"]
["9151002","Plasterboard flush mounting board (for Helios IP Force/Safety)"]
["9153003","Helios IP Uni - Alu box"]
["9152000","Helios IP Safety - metal frame (Orange color)"]
["2N® Access Unit"]
[916010,"2N® Access Unit - 13.56MHz cards NFC ready"]
[916009,"2N® Access Unit - 125kHz"]
[916012,"2N® Access Unit - NFC license"]
["2N® Indoor Touch"]
[91378365,"2N® Indoor Touch PoE - Black     "]
["91378365WH","2N® Indoor Touch PoE - White     "]
[91378366,"2N® Indoor Touch PoE, WiFi - Black  "]
["91378366WH","2N® Indoor Touch PoE, WiFi - White      "]
["Others  Accessories","Accesories"]
["91341481E","12 V power supply EU plug"]
["932071E","Electrical lock 11211 low consumption 12V/230mA DC"]
["932081E","Electrical lock 11221 hold-open, low consumption 12V/230mA DC"]
["932091E","Electrical lock 11211MB mechanical blocking, low consumption 12V/230mA DC"]
["932072E","Electrical lock 31211 fail-safe 12V/170mA "]
["932061E","Electrical lock 211211 door signalling, low consumption 12V/230mA"]
["932062E","Electrical lock 321211 fail-safe, door signalling 12V/170mA"]
[91378100,"PoE injector - without cable"]
["91378100E","PoE injector PSA16U-480(POE); 1port 15.4W AC/DC - with EU cable"]
["91378100US","PoE injector PSA16U-480(POE); 1port 15.4W AC/DC - with US cable"]
[932928,"12 V transformer for electrical lock"]
["9137410E","External IP Relay - 1 output, 1 input"]
["9137420E","External RFID Reader 125kHz EMarine (USB interface)"]
["9137421E","External RFID Reader 13.56MHz (USB interface)"]
[916020,"2N® Access Unit - RJ45 connector cable"]
["9137430E","2N® Helios IP Card Reader 125 kHz (suitable for Helios IP Vario only) it includes Wiegand interface, 2 logical inputs, 2 passive relays"]
[9151011,"2N® Helios IP Card Reader 125 kHz (suitable for Helios IP Force only) it includes Wiegand interface, 2 logical inputs, 1 relay, 1 active output and tamper switch"]
[9159013,"2N® Exit button (suitable for Helios IP Vario/Force with card reader or any model of Helios IP Verso)"]
[9151017,"2N® Helios IP 13.56MHz smart card reader NFC ready  (suitable for Helios IP Force only) it includes Wiegand interface, 2 logical inputs, 1 relay, 1 active output and Tamper switch"]
[9151019,"2N® Helios IP 13.56MHz Secured card reader NFC ready  (suitable for Helios IP Force only) it includes Wiegand interface, 2 logical inputs, 1 relay, 1 active output and Tamper switch"]
[9151018,"2N® Helios IP Force - safety screws"]
[9159012,"2N® Magnetic door contact "]
[9134173,"Mifare RFID card 13.56MHz"]
[9134174,"Mifare RFID key fob 13.56MHz"]
["9159014EU","2N® 2Wire (set of 2 adaptors and power source for EU)"]
["9159014US","2N® 2Wire (set of 2 adaptors and power source for the US)"]
["9159014UK","2N® 2Wire (set of 2 adaptors and power source for the UK)"]
[9159050,"2N® Induction Loop for 2N® Helios IP"]
[9159051,"2N® Induction Loop external antenna"]
[9159052,"2N® Induction Loop - power supply"]
[9159030,"External 125 kHz EMarine RFID card reader, Wiegand"]
[9159031,"External 13.56MHz Mifare RFID card reader, Wiegand"]
[9151010,"Additional switch + Tamper (suitable for Helios IP Force & Safety only)"]
["9134165E","EMarine RFID card 125 kHz"]
["9134166E","EMarine RFID key fob 125 kHz"]
[9159010,"2N® Helios IP Security Relay"]
["9137310E","Additional switch (suitable for Helios IP Vario only)"]

{"sheet":"Photos","index":11,"n_rows":0,"n_cols":0,"rows_kept":0,"cut":false,"hidden":false,"merged":[]}

{"sheet":"Product_guide_data","index":12,"n_rows":7,"n_cols":10,"rows_kept":7,"cut":false,"hidden":false,"merged":[]}
[]
[null,"Camera","Night vision","Antivandal","More than 1 button","More than 6 buttons","Integral RFID card reader","Keypad","HD"]
[null,1,0,0,1,1,1,1,0,"2N® Helios IP Vario"]
[null,1,1,1,1,0,1,1,1,"2N® Helios IP Force"]
[null,0,0,1,1,0,0,0,0,"2N® Helios IP Safety"]
[null,0,0,0,1,0,0,0,0,"2N® Helios IP Uni"]
[null,1,1,0,1,1,1,1,1,"2N® Helios IP Verso"]